[Event "FIDE Open Sachove Univerzity QCC"]
[Site "Ceske Budejovice"]
[Date "2020.07.01"]
[Round "1.22"]
[White "Gorej, Jan"]
[Black "Matlocha, Lubomir"]
[Result "0-1"]
[ECO "A40"]
[WhiteElo "1247"]
[BlackElo "1646"]
[Annotator "NA"]
[PlyCount "46"]
[EventDate "2020.07.01"]
[EventType "swiss"]
[EventCountry "CZE"]
[SourceTitle "playchess.com"]
[Source "ChessBase"]
[SourceQuality "1"]
[TimeControl "40/5400+30:1800+30"]

1. d4 {[%emt 0:00:00]} c6 {[%emt 0:00:09]} 2. c4 {[%emt 0:00:24]} g6 {[%emt 0:00:12]} 3. e4 {[%emt 0:00:20]} Bg7 {[%emt 0:00:30]} 4. Bf4 {[%emt 0:01:29]} d6 {[%emt 0:00:00]} 5. Nf3 {[%emt 0:02:37]} Nd7 {[%emt 0:00:57]} 6. Nbd2 {[%emt 0:05:10]} Ngf6 {[%emt 0:02:49]} 7. Bd3 {[%emt 0:09:34]} Nh5 {[%emt 0:01:47]} 8. Be3 {[%emt 0:01:04]} O-O {[%emt 0:04:16]} 9. Qc2 {[%emt 0:02:27]} c5 {[%emt 0:02:59]} 10. d5 {[%emt 0:13:44]} a6 {[%emt 0:07:27]} 11. O-O {[%emt 0:04:11]} Rb8 {[%emt 0:07:25]} 12. Nh4 {[%emt 0:08:10]} Nb6 {[%emt 0:11:57]} 13. f4 {[%emt 0:02:05]} e5 {[%emt 0:01:22]} 14. dxe6 {[%emt 0:04:02]} Qxh4 {[%emt 0:00:42]} 15. Nf3 {[%emt 0:03:16]} Qe7 {[%emt 0:00:43]} 16. f5 {[%emt 0:05:33]} gxf5 {[%emt 0:05:53]} 17. exf5 {[%emt 0:02:59]} fxe6 {[%emt 0:00:45]} 18. g4 {[%emt 0:03:34]} exf5 {[%emt 0:13:25]} 19. gxh5 {[%emt 0:00:08]} Qxe3+ {[%emt 0:00:24]} 20. Kh1 {[%emt 0:01:58]} Kh8 {[%emt 0:02:45]} 21. Rae1 {[%emt 0:00:51]} Qh6 {[%emt 0:00:27]} 22. Re7 {[%emt 0:01:29]} Bf6 {[%emt 0:05:56]} 23. Re2 {[%emt 0:03:27]} Bd7 {[%emt 0:03:12]} 0-1

[Event "FIDE Open Sachove Univerzity QCC"]
[Site "Ceske Budejovice"]
[Date "2020.07.01"]
[Round "1.23"]
[White "Veverka, Vladimir"]
[Black "Komarek, Tobias"]
[Result "1-0"]
[ECO "D35"]
[WhiteElo "1644"]
[BlackElo "1246"]
[Annotator "NA"]
[PlyCount "139"]
[EventDate "2020.07.01"]
[EventType "swiss"]
[EventCountry "CZE"]
[SourceTitle "playchess.com"]
[Source "ChessBase"]
[SourceQuality "1"]
[TimeControl "40/5400+30:1800+30"]

1. d4 {[%emt 0:00:00]} d5 {[%emt 0:00:00]} 2. c4 {[%emt 0:00:04]} e6 {[%emt 0:00:00]} 3. Nc3 {[%emt 0:00:13]} Nf6 {[%emt 0:00:03]} 4. cxd5 {[%emt 0:00:14]} exd5 {[%emt 0:00:08]} 5. Bg5 {[%emt 0:00:49]} Be7 {[%emt 0:00:21]} 6. e3 {[%emt 0:00:12]} h6 {[%emt 0:00:53]} 7. Bf4 {[%emt 0:00:30]} a6 {[%emt 0:01:11]} 8. Qc2 {[%emt 0:00:24]} Nc6 {[%emt 0:02:15]} 9. a3 {[%emt 0:00:52]} Be6 {[%emt 0:00:37]} 10. Bd3 {[%emt 0:00:32]} Qd7 {[%emt 0:01:22]} 11. Nge2 {[%emt 0:00:32]} O-O {[%emt 0:00:50]} 12. O-O {[%emt 0:00:38]} Rac8 {[%emt 0:03:59]} 13. Na4 {[%emt 0:03:17]} b5 {[%emt 0:05:07]} 14. Nac3 {[%emt 0:00:46]} Ra8 {[%emt 0:01:06]} 15. Nxb5 {[%emt 0:01:55]} axb5 {[%emt 0:05:25]} 16. Bxb5 {[%emt 0:00:31]} Nxd4 {[%emt 0:00:30]} 17. Nxd4 {[%emt 0:00:19]} Qc8 {[%emt 0:01:44]} 18. Qxc7 {[%emt 0:01:03]} Qxc7 {[%emt 0:00:36]} 19. Bxc7 {[%emt 0:00:09]} Ne8 {[%emt 0:09:15]} 20. Nxe6 {[%emt 0:01:31]} fxe6 {[%emt 0:00:15]} 21. Be5 {[%emt 0:02:11]} Bf6 {[%emt 0:01:39]} 22. Bxf6 {[%emt 0:00:39]} Nxf6 {[%emt 0:00:15]} 23. Rfb1 {[%emt 0:01:39]} Rab8 {[%emt 0:04:07]} 24. Bd3 {[%emt 0:00:27]} Ng4 {[%emt 0:03:10]} 25. b4 {[%emt 0:00:24]} Nxf2 {[%emt 0:00:38]} 26. Be2 {[%emt 0:01:40]} Ne4 {[%emt 0:00:47]} 27. Rf1 {[%emt 0:01:09]} Rxf1+ {[%emt 0:01:24]} 28. Rxf1 {[%emt 0:00:53]} Ra8 {[%emt 0:01:41]} 29. Ra1 {[%emt 0:02:06]} g5 {[%emt 0:00:43]} 30. b5 {[%emt 0:01:04]} e5 {[%emt 0:02:27]} 31. Bf3 {[%emt 0:02:29]} Nc3 {[%emt 0:02:33]} 32. Rc1 {[%emt 0:05:29]} Rxa3 {[%emt 0:05:28]} 33. b6 {[%emt 0:00:31]} Rb3 {[%emt 0:01:10]} 34. b7 {[%emt 0:01:25]} e4 {[%emt 0:00:30]} 35. Rxc3 {[%emt 0:01:09]} Rb1+ {[%emt 0:01:57]} 36. Kf2 {[%emt 0:00:48]} Rb2+ {[%emt 0:00:23]} 37. Be2 {[%emt 0:00:51]} Rxb7 {[%emt 0:00:24]} 38. Rc5 {[%emt 0:00:27]} Rd7 {[%emt 0:00:27]} 39. Bg4 {[%emt 0:00:20]} Rd6 {[%emt 0:00:27]} 40. Bc8 {[%emt 0:01:22]} Kf7 {[%emt 0:02:00]} 41. Bb7 {[%emt 0:31:15]} Ke6 {[%emt 0:30:55]} 42. Rc6 {[%emt 0:01:02]} Rxc6 {[%emt 0:00:50]} 43. Bxc6 {[%emt 0:00:07]} Ke5 {[%emt 0:00:26]} 44. Kg3 {[%emt 0:00:47]} d4 {[%emt 0:00:39]} 45. exd4+ {[%emt 0:00:22]} Kxd4 {[%emt 0:00:07]} 46. Kg4 {[%emt 0:00:39]} e3 {[%emt 0:00:47]} 47. Bb5 {[%emt 0:00:29]} Ke4 {[%emt 0:01:27]} 48. Kh5 {[%emt 0:00:17]} Kf4 {[%emt 0:01:29]} 49. Be2 {[%emt 0:00:23]} g4 {[%emt 0:00:50]} 50. Bxg4 {[%emt 0:00:11]} Ke5 {[%emt 0:00:22]} 51. Kxh6 {[%emt 0:00:17]} Kf4 {[%emt 0:00:25]} 52. Be2 {[%emt 0:00:12]} Ke4 {[%emt 0:00:24]} 53. Kg6 {[%emt 0:00:14]} Kf4 {[%emt 0:00:31]} 54. g3+ {[%emt 0:00:20]} Ke4 {[%emt 0:00:24]} 55. h4 {[%emt 0:00:41]} Kd4 {[%emt 0:00:17]} 56. h5 {[%emt 0:00:22]} Kc3 {[%emt 0:00:04]} 57. h6 {[%emt 0:00:21]} Kd2 {[%emt 0:00:10]} 58. Ba6 {[%emt 0:00:08]} e2 {[%emt 0:00:15]} 59. Bxe2 {[%emt 0:00:11]} Kxe2 {[%emt 0:00:12]} 60. g4 {[%emt 0:00:04]} Kf3 {[%emt 0:00:23]} 61. g5 {[%emt 0:02:53]} Ke4 {[%emt 0:00:17]} 62. h7 {[%emt 0:00:11]} Ke5 {[%emt 0:00:05]} 63. Kf7 {[%emt 0:00:16]} Kf5 {[%emt 0:00:15]} 64. g6 {[%emt 0:00:07]} Kg5 {[%emt 0:00:13]} 65. g7 {[%emt 0:00:17]} Kf5 {[%emt 0:00:12]} 66. g8=Q {[%emt 0:00:19]} Ke5 {[%emt 0:00:16]} 67. h8=Q+ {[%emt 0:00:15]} Ke4 {[%emt 0:00:23]} 68. Qg5 {[%emt 0:00:37]} Kf3 {[%emt 0:00:13]} 69. Qc3+ {[%emt 0:00:29]} Ke4 {[%emt 0:00:11]} 70. Qge5# {[%emt 0:00:24]} 1-0

[Event "FIDE Open Sachove Univerzity QCC"]
[Site "Ceske Budejovice"]
[Date "2020.07.01"]
[Round "1.24"]
[White "Jilek, Pavel"]
[Black "Zelbova, Lada"]
[Result "0-1"]
[ECO "B20"]
[WhiteElo "1234"]
[BlackElo "1637"]
[Annotator "NA"]
[PlyCount "78"]
[EventDate "2020.07.01"]
[EventType "swiss"]
[EventCountry "CZE"]
[SourceTitle "playchess.com"]
[Source "ChessBase"]
[SourceQuality "1"]
[TimeControl "40/5400+30:1800+30"]

1. e4 {[%emt 0:00:00]} c5 {[%emt 0:00:00]} 2. Bc4 {[%emt 0:00:49]} e6 {[%emt 0:02:29]} 3. b3 {[%emt 0:01:52]} d5 {[%emt 0:01:04]} 4. Bd3 {[%emt 0:02:30]} Nc6 {[%emt 0:03:55]} 5. Bb2 {[%emt 0:03:59]} Nf6 {[%emt 0:02:23]} 6. e5 {[%emt 0:02:10]} Nd7 {[%emt 0:00:15]} 7. Nf3 {[%emt 0:00:45]} Qc7 {[%emt 0:02:50]} 8. Qe2 {[%emt 0:01:13]} d4 {[%emt 0:01:53]} 9. Bb5 {[%emt 0:03:36]} a6 {[%emt 0:00:46]} 10. Bxc6 {[%emt 0:00:32]} Qxc6 {[%emt 0:00:14]} 11. d3 {[%emt 0:01:44]} Be7 {[%emt 0:01:34]} 12. Nbd2 {[%emt 0:03:17]} O-O {[%emt 0:02:00]} 13. Qe4 {[%emt 0:04:52]} Qc7 {[%emt 0:01:06]} 14. O-O {[%emt 0:03:00]} Rb8 {[%emt 0:01:54]} 15. c3 {[%emt 0:00:56]} dxc3 {[%emt 0:00:49]} 16. Bxc3 {[%emt 0:00:34]} b5 {[%emt 0:01:40]} 17. a3 {[%emt 0:03:43]} Bb7 {[%emt 0:01:27]} 18. Qe2 {[%emt 0:01:21]} Nb6 {[%emt 0:05:22]} 19. Ba5 {[%emt 0:01:57]} Qc6 {[%emt 0:02:03]} 20. Bxb6 {[%emt 0:01:38]} Qxb6 {[%emt 0:00:08]} 21. Ne4 {[%emt 0:02:29]} Rbc8 {[%emt 0:02:50]} 22. Qe3 {[%emt 0:04:10]} Qc7 {[%emt 0:02:46]} 23. Rac1 {[%emt 0:00:58]} Bd5 {[%emt 0:05:50]} 24. Nd6 {[%emt 0:01:00]} Bxd6 {[%emt 0:01:59]} 25. exd6 {[%emt 0:00:28]} Qxd6 {[%emt 0:00:15]} 26. b4 {[%emt 0:03:23]} cxb4 {[%emt 0:02:35]} 27. Qe5 {[%emt 0:04:26]} Qxe5 {[%emt 0:00:36]} 28. Nxe5 {[%emt 0:00:19]} bxa3 {[%emt 0:00:15]} 29. Nd7 {[%emt 0:02:02]} Rfd8 {[%emt 0:00:37]} 30. Nb6 {[%emt 0:01:32]} Rxc1 {[%emt 0:00:51]} 31. Rxc1 {[%emt 0:00:17]} h6 {[%emt 0:00:10]} 32. Kf1 {[%emt 0:02:40]} b4 {[%emt 0:00:57]} 33. Ra1 {[%emt 0:08:36]} Rb8 {[%emt 0:01:25]} 34. Nd7 {[%emt 0:09:12]} Rb5 {[%emt 0:01:14]} 35. d4 {[%emt 0:02:51]} b3 {[%emt 0:00:32]} 36. Nc5 {[%emt 0:07:50]} b2 {[%emt 0:00:34]} 37. Rxa3 {[%emt 0:02:27]} b1=Q+ {[%emt 0:00:07]} 38. Ke2 {[%emt 0:01:18]} Rb2+ {[%emt 0:00:31]} 39. Ke3 {[%emt 0:01:09]} Qc1+ {[%emt 0:00:06]} 0-1

[Event "FIDE Open Sachove Univerzity QCC"]
[Site "Ceske Budejovice"]
[Date "2020.07.01"]
[Round "1.25"]
[White "Cipera, Josef"]
[Black "Predota, Vit"]
[Result "1/2-1/2"]
[ECO "D00"]
[WhiteElo "1612"]
[BlackElo "1233"]
[Annotator "NA"]
[PlyCount "116"]
[EventDate "2020.07.01"]
[EventType "swiss"]
[EventCountry "CZE"]
[SourceTitle "playchess.com"]
[Source "ChessBase"]
[SourceQuality "1"]
[TimeControl "40/5400+30:1800+30"]

1. d4 {[%emt 0:00:00]} d5 {[%emt 0:00:00]} 2. Bf4 {[%emt 0:00:00]} Nc6 {[%emt 0:00:00]} 3. e3 {[%emt 0:00:00]} Nf6 {[%emt 0:00:26]} 4. c3 {[%emt 0:00:33]} Bf5 {[%emt 0:00:29]} 5. Bd3 {[%emt 0:02:14]} Bxd3 {[%emt 0:01:07]} 6. Qxd3 {[%emt 0:00:04]} Qd7 {[%emt 0:02:34]} 7. h3 {[%emt 0:01:03]} e6 {[%emt 0:03:30]} 8. Nf3 {[%emt 0:02:15]} Nh5 {[%emt 0:01:41]} 9. Bh2 {[%emt 0:00:55]} Bd6 {[%emt 0:00:27]} 10. Ne5 {[%emt 0:01:23]} Bxe5 {[%emt 0:01:33]} 11. dxe5 {[%emt 0:00:14]} f6 {[%emt 0:01:58]} 12. g4 {[%emt 0:00:13]} fxe5 {[%emt 0:02:16]} 13. gxh5 {[%emt 0:01:33]} O-O {[%emt 0:01:44]} 14. Qe2 {[%emt 0:04:10]} d4 {[%emt 0:02:21]} 15. exd4 {[%emt 0:01:41]} exd4 {[%emt 0:00:32]} 16. Be5 {[%emt 0:04:14]} Qd5 {[%emt 0:01:58]} 17. Rg1 {[%emt 0:05:36]} Qxe5 {[%emt 0:00:45]} 18. Rg4 {[%emt 0:04:27]} dxc3 {[%emt 0:01:13]} 19. Nxc3 {[%emt 0:01:25]} Qxe2+ {[%emt 0:00:27]} 20. Kxe2 {[%emt 0:01:37]} Rf5 {[%emt 0:00:37]} 21. Rag1 {[%emt 0:00:54]} Rxh5 {[%emt 0:01:23]} 22. Rxg7+ {[%emt 0:02:13]} Kh8 {[%emt 0:00:18]} 23. Rxc7 {[%emt 0:01:21]} Rxh3 {[%emt 0:01:05]} 24. Rxb7 {[%emt 0:04:41]} Nd4+ {[%emt 0:00:28]} 25. Kd1 {[%emt 0:01:40]} Rd8 {[%emt 0:03:58]} 26. Rf1 {[%emt 0:02:50]} Nb5+ {[%emt 0:01:02]} 27. Kc2 {[%emt 0:01:06]} Nxc3 {[%emt 0:02:14]} 28. bxc3 {[%emt 0:09:34]} Rc8 {[%emt 0:00:54]} 29. Rb3 {[%emt 0:00:30]} a5 {[%emt 0:00:30]} 30. Re1 {[%emt 0:00:30]} Rc6 {[%emt 0:00:33]} 31. Rg1 {[%emt 0:04:12]} h5 {[%emt 0:00:22]} 32. Rd1 {[%emt 0:04:06]} Rf3 {[%emt 0:02:12]} 33. Rd7 {[%emt 0:05:23]} Rxf2+ {[%emt 0:00:38]} 34. Kd3 {[%emt 0:01:16]} Rc8 {[%emt 0:00:32]} 35. Rbb7 {[%emt 0:00:17]} h4 {[%emt 0:01:42]} 36. Rh7+ {[%emt 0:01:21]} Kg8 {[%emt 0:00:07]} 37. Rxh4 {[%emt 0:02:03]} Rf3+ {[%emt 0:01:59]} 38. Kd2 {[%emt 0:08:49]} Rfxc3 {[%emt 0:01:00]} 39. Ra4 {[%emt 0:01:42]} R3c5 {[%emt 0:00:29]} 40. Ra7 {[%emt 0:00:27]} e5 {[%emt 0:00:30]} 41. R4xa5 {[%emt 0:31:01]} Rxa5 {[%emt 0:30:18]} 42. Rxa5 {[%emt 0:00:04]} e4 {[%emt 0:00:20]} 43. Ke3 {[%emt 0:00:10]} Re8 {[%emt 0:00:40]} 44. a4 {[%emt 0:00:20]} Kf8 {[%emt 0:00:10]} 45. Rd5 {[%emt 0:02:19]} Re7 {[%emt 0:00:20]} 46. Rd4 {[%emt 0:04:39]} Re5 {[%emt 0:01:14]} 47. Rxe4 {[%emt 0:00:15]} Rxe4+ {[%emt 0:00:00]} 48. Kxe4 {[%emt 0:01:34]} Ke8 {[%emt 0:00:00]} 49. Ke5 {[%emt 0:00:30]} Kd7 {[%emt 0:00:00]} 50. Kd5 {[%emt 0:00:30]} Kc7 {[%emt 0:00:26]} 51. Kc5 {[%emt 0:00:30]} Kb7 {[%emt 0:00:30]} 52. a5 {[%emt 0:00:30]} Kb8 {[%emt 0:00:30]} 53. Kb6 {[%emt 0:00:30]} Kc8 {[%emt 0:00:30]} 54. Ka7 {[%emt 0:00:56]} Kc7 {[%emt 0:00:08]} 55. Ka8 {[%emt 0:00:45]} Kc8 {[%emt 0:00:08]} 56. a6 {[%emt 0:00:26]} Kc7 {[%emt 0:00:07]} 57. Ka7 {[%emt 0:00:26]} Kc8 {[%emt 0:00:11]} 58. Kb6 {[%emt 0:00:07]} Kb8 {[%emt 0:00:04]} 1/2-1/2

[Event "FIDE Open Sachove Univerzity QCC"]
[Site "Ceske Budejovice"]
[Date "2020.07.01"]
[Round "1.26"]
[White "Berkovec, Jakub"]
[Black "Jodas, Daniel"]
[Result "0-1"]
[ECO "B83"]
[WhiteElo "1224"]
[BlackElo "1608"]
[Annotator "NA"]
[PlyCount "82"]
[EventDate "2020.07.01"]
[EventType "swiss"]
[EventCountry "CZE"]
[SourceTitle "playchess.com"]
[Source "ChessBase"]
[SourceQuality "1"]
[TimeControl "40/5400+30:1800+30"]

1. e4 {[%emt 0:00:00]} c5 {[%emt 0:00:00]} 2. Nf3 {[%emt 0:00:03]} e6 {[%emt 0:00:07]} 3. d4 {[%emt 0:01:28]} cxd4 {[%emt 0:00:28]} 4. Nxd4 {[%emt 0:01:33]} d6 {[%emt 0:00:39]} 5. Nc3 {[%emt 0:01:02]} Bd7 {[%emt 0:00:39]} 6. Be3 {[%emt 0:01:17]} Nc6 {[%emt 0:00:35]} 7. Be2 {[%emt 0:01:08]} Be7 {[%emt 0:00:48]} 8. Qd2 {[%emt 0:01:30]} Nf6 {[%emt 0:00:48]} 9. O-O {[%emt 0:01:50]} O-O {[%emt 0:00:37]} 10. Rad1 {[%emt 0:01:49]} a6 {[%emt 0:02:31]} 11. f4 {[%emt 0:02:46]} Nxd4 {[%emt 0:03:51]} 12. Bxd4 {[%emt 0:01:33]} Bc6 {[%emt 0:01:42]} 13. e5 {[%emt 0:02:15]} dxe5 {[%emt 0:02:05]} 14. Bxe5 {[%emt 0:01:46]} Qb6+ {[%emt 0:05:14]} 15. Bd4 {[%emt 0:06:13]} Bc5 {[%emt 0:01:47]} 16. Bxc5 {[%emt 0:02:51]} Qxc5+ {[%emt 0:00:08]} 17. Qd4 {[%emt 0:01:36]} Qf5 {[%emt 0:05:33]} 18. Bd3 {[%emt 0:04:50]} Qg4 {[%emt 0:06:05]} 19. Ne4 {[%emt 0:03:56]} Nxe4 {[%emt 0:06:15]} 20. Bxe4 {[%emt 0:03:21]} Rac8 {[%emt 0:02:35]} 21. Bxc6 {[%emt 0:02:51]} Rxc6 {[%emt 0:00:35]} 22. c3 {[%emt 0:02:19]} h6 {[%emt 0:01:46]} 23. g3 {[%emt 0:02:47]} Rfc8 {[%emt 0:01:09]} 24. Qd7 {[%emt 0:03:52]} b5 {[%emt 0:00:46]} 25. Rd6 {[%emt 0:04:31]} R6c7 {[%emt 0:00:53]} 26. Qxc8+ {[%emt 0:03:21]} Rxc8 {[%emt 0:00:10]} 27. Rxa6 {[%emt 0:01:01]} Rd8 {[%emt 0:02:45]} 28. Rb6 {[%emt 0:03:04]} Qe2 {[%emt 0:02:14]} 29. Rf2 {[%emt 0:02:13]} Rd1+ {[%emt 0:00:20]} 30. Kg2 {[%emt 0:00:41]} Qe4+ {[%emt 0:00:08]} 31. Kh3 {[%emt 0:02:33]} Rg1 {[%emt 0:00:18]} 32. Rxb5 {[%emt 0:01:56]} Qg6 {[%emt 0:01:19]} 33. Rg2 {[%emt 0:02:02]} Rf1 {[%emt 0:02:36]} 34. Rd2 {[%emt 0:01:36]} h5 {[%emt 0:02:15]} 35. Rg5 {[%emt 0:02:05]} Qh6 {[%emt 0:02:25]} 36. a4 {[%emt 0:01:55]} f6 {[%emt 0:00:42]} 37. Rc5 {[%emt 0:01:12]} Qg6 {[%emt 0:00:20]} 38. Kg2 {[%emt 0:01:26]} Rxf4 {[%emt 0:00:19]} 39. Rc8+ {[%emt 0:01:21]} Kh7 {[%emt 0:00:24]} 40. Rdd8 {[%emt 0:01:34]} Qe4+ {[%emt 0:00:15]} 41. Kh3 {[%emt 0:31:44]} Rh4+ {[%emt 0:32:28]} 0-1

[Event "FIDE Open Sachove Univerzity QCC"]
[Site "Ceske Budejovice"]
[Date "2020.07.01"]
[Round "1.27"]
[White "Vavrousek, Petr"]
[Black "Stavova, Marketa"]
[Result "1-0"]
[ECO "C68"]
[WhiteElo "1605"]
[BlackElo "1219"]
[Annotator "NA"]
[PlyCount "110"]
[EventDate "2020.07.01"]
[EventType "swiss"]
[EventCountry "CZE"]
[SourceTitle "playchess.com"]
[Source "ChessBase"]
[SourceQuality "1"]
[TimeControl "40/5400+30:1800+30"]

1. e4 {[%emt 0:02:08]} e5 {[%emt 0:00:10]} 2. Nf3 {[%emt 0:00:07]} Nc6 {[%emt 0:01:15]} 3. Bb5 {[%emt 0:00:10]} a6 {[%emt 0:01:19]} 4. Bxc6 {[%emt 0:00:15]} dxc6 {[%emt 0:00:45]} 5. O-O {[%emt 0:00:11]} Bg4 {[%emt 0:01:18]} 6. h3 {[%emt 0:00:14]} h5 {[%emt 0:00:54]} 7. d3 {[%emt 0:00:11]} Bxf3 {[%emt 0:03:05]} 8. Qxf3 {[%emt 0:00:32]} f6 {[%emt 0:00:47]} 9. Nd2 {[%emt 0:02:46]} Qd7 {[%emt 0:01:19]} 10. Nc4 {[%emt 0:01:57]} g5 {[%emt 0:01:56]} 11. Ne3 {[%emt 0:10:14]} Qh7 {[%emt 0:04:09]} 12. Qf5 {[%emt 0:00:53]} Qh6 {[%emt 0:01:07]} 13. Qe6+ {[%emt 0:00:32]} Ne7 {[%emt 0:00:42]} 14. Nf5 {[%emt 0:00:22]} Qh7 {[%emt 0:01:27]} 15. Qxf6 {[%emt 0:02:48]} g4 {[%emt 0:00:54]} 16. h4 {[%emt 0:01:56]} Ng6 {[%emt 0:03:08]} 17. Qe6+ {[%emt 0:01:44]} Ne7 {[%emt 0:01:16]} 18. Bg5 {[%emt 0:00:47]} Rg8 {[%emt 0:02:30]} 19. Qxe5 {[%emt 0:01:05]} O-O-O {[%emt 0:01:29]} 20. Nxe7+ {[%emt 0:00:13]} Bxe7 {[%emt 0:00:19]} 21. Qxe7 {[%emt 0:00:37]} Qxe7 {[%emt 0:00:33]} 22. Bxe7 {[%emt 0:00:08]} Rd7 {[%emt 0:01:10]} 23. Bf6 {[%emt 0:01:04]} Rf8 {[%emt 0:00:51]} 24. Be5 {[%emt 0:00:20]} Re7 {[%emt 0:01:14]} 25. Bg3 {[%emt 0:00:10]} Ref7 {[%emt 0:00:41]} 26. Rae1 {[%emt 0:00:35]} Kd7 {[%emt 0:00:42]} 27. d4 {[%emt 0:00:45]} Ke6 {[%emt 0:00:40]} 28. d5+ {[%emt 0:00:50]} cxd5 {[%emt 0:00:46]} 29. exd5+ {[%emt 0:00:19]} Kxd5 {[%emt 0:00:25]} 30. Re5+ {[%emt 0:00:08]} Kc6 {[%emt 0:00:54]} 31. Rxh5 {[%emt 0:00:12]} Rd8 {[%emt 0:01:13]} 32. Rh6+ {[%emt 0:00:50]} Kb5 {[%emt 0:00:49]} 33. Rg6 {[%emt 0:01:41]} Rd2 {[%emt 0:00:45]} 34. Rc1 {[%emt 0:00:59]} Rd4 {[%emt 0:00:53]} 35. h5 {[%emt 0:03:37]} Rh7 {[%emt 0:00:40]} 36. h6 {[%emt 0:00:21]} Rdd7 {[%emt 0:01:02]} 37. Be5 {[%emt 0:01:26]} Rd8 {[%emt 0:01:19]} 38. Bg7 {[%emt 0:01:53]} Rg8 {[%emt 0:00:44]} 39. a4+ {[%emt 0:01:36]} Kxa4 {[%emt 0:00:54]} 40. Rxg4+ {[%emt 0:00:25]} Kb5 {[%emt 0:00:15]} 41. Rf4 {[%emt 0:30:52]} Kc6 {[%emt 0:30:53]} 42. Re1 {[%emt 0:02:10]} Kd5 {[%emt 0:01:03]} 43. Re7 {[%emt 0:01:17]} Kd6 {[%emt 0:00:49]} 44. Rff7 {[%emt 0:00:21]} Rc8 {[%emt 0:00:58]} 45. Be5+ {[%emt 0:01:09]} Kd5 {[%emt 0:00:40]} 46. Rxh7 {[%emt 0:00:08]} c6 {[%emt 0:00:49]} 47. Bc3 {[%emt 0:00:51]} b5 {[%emt 0:00:50]} 48. Rh8 {[%emt 0:00:38]} Rxh8 {[%emt 0:00:28]} 49. Bxh8 {[%emt 0:00:08]} Kd6 {[%emt 0:00:35]} 50. Re1 {[%emt 0:00:55]} c5 {[%emt 0:00:30]} 51. Bg7 {[%emt 0:00:30]} Kc6 {[%emt 0:00:25]} 52. h7 {[%emt 0:01:08]} Kb6 {[%emt 0:00:30]} 53. h8=Q {[%emt 0:00:30]} Ka5 {[%emt 0:00:14]} 54. Qd8+ {[%emt 0:00:24]} Kb4 {[%emt 0:00:26]} 55. Bc3+ {[%emt 0:00:23]} Ka4 {[%emt 0:00:43]} 1-0

[Event "FIDE Open Sachove Univerzity QCC"]
[Site "Ceske Budejovice"]
[Date "2020.07.01"]
[Round "1.28"]
[White "Postl, Frantisek"]
[Black "Frnoch, Vojtech"]
[Result "0-1"]
[ECO "C10"]
[WhiteElo "1188"]
[BlackElo "1597"]
[Annotator "NA"]
[PlyCount "47"]
[EventDate "2020.07.01"]
[EventType "swiss"]
[EventCountry "CZE"]
[SourceTitle "playchess.com"]
[Source "ChessBase"]
[SourceQuality "1"]
[TimeControl "40/5400+30:1800+30"]

1. e4 {[%emt 0:00:00]} e6 {[%emt 0:00:00]} 2. d4 {[%emt 0:00:00]} d5 {[%emt 0:00:00]} 3. Nc3 {[%emt 0:00:06]} c5 {[%emt 0:00:35]} 4. Nf3 {[%emt 0:00:28]} Nc6 {[%emt 0:00:58]} 5. dxc5 {[%emt 0:00:39]} Bxc5 {[%emt 0:00:41]} 6. Bg5 {[%emt 0:01:27]} Be7 {[%emt 0:01:55]} 7. exd5 {[%emt 0:01:18]} exd5 {[%emt 0:01:53]} 8. Nxd5 {[%emt 0:01:31]} Bxg5 {[%emt 0:03:13]} 9. Nxg5 {[%emt 0:00:44]} h6 {[%emt 0:03:26]} 10. Nf3 {[%emt 0:01:54]} Be6 {[%emt 0:00:58]} 11. Bc4 {[%emt 0:00:50]} Nge7 {[%emt 0:02:17]} 12. Nxe7 {[%emt 0:03:00]} Bxc4 {[%emt 0:03:51]} 13. Qxd8+ {[%emt 0:00:47]} Rxd8 {[%emt 0:00:29]} 14. Nxc6 {[%emt 0:00:42]} bxc6 {[%emt 0:00:16]} 15. Rd1 {[%emt 0:01:58]} O-O {[%emt 0:01:43]} 16. Rxd8 {[%emt 0:01:40]} Rxd8 {[%emt 0:01:56]} 17. Nd2 {[%emt 0:02:56]} Re8+ {[%emt 0:03:05]} 18. Kd1 {[%emt 0:00:13]} Be2+ {[%emt 0:01:42]} 19. Kc1 {[%emt 0:00:24]} Bh5 {[%emt 0:04:16]} 20. Rg1 {[%emt 0:03:15]} Re2 {[%emt 0:04:06]} 21. f3 {[%emt 0:00:55]} Bg6 {[%emt 0:00:48]} 22. h4 {[%emt 0:01:47]} f5 {[%emt 0:02:13]} 23. g4 {[%emt 0:00:31]} fxg4 {[%emt 0:00:14]} 24. Rxg4 {[%emt 0:00:26]} 0-1

[Event "FIDE Open Sachove Univerzity QCC"]
[Site "Ceske Budejovice"]
[Date "2020.07.01"]
[Round "1.29"]
[White "Tajovsky, Simon"]
[Black "Skalicky, Jindrich"]
[Result "1-0"]
[ECO "D27"]
[WhiteElo "1594"]
[BlackElo "1165"]
[Annotator "NA"]
[PlyCount "79"]
[EventDate "2020.07.01"]
[EventType "swiss"]
[EventCountry "CZE"]
[SourceTitle "playchess.com"]
[Source "ChessBase"]
[SourceQuality "1"]
[TimeControl "40/5400+30:1800+30"]

1. d4 {[%emt 0:00:00]} d5 {[%emt 0:00:00]} 2. c4 {[%emt 0:00:00]} dxc4 {[%emt 0:00:00]} 3. e3 {[%emt 0:00:00]} Nf6 {[%emt 0:00:18]} 4. Nc3 {[%emt 0:00:02]} a6 {[%emt 0:08:12]} 5. Bxc4 {[%emt 0:01:29]} e6 {[%emt 0:01:03]} 6. Nf3 {[%emt 0:00:20]} c5 {[%emt 0:00:46]} 7. O-O {[%emt 0:01:11]} Nc6 {[%emt 0:04:14]} 8. d5 {[%emt 0:07:26]} exd5 {[%emt 0:01:02]} 9. Nxd5 {[%emt 0:06:35]} Nxd5 {[%emt 0:00:11]} 10. Bxd5 {[%emt 0:00:47]} Be7 {[%emt 0:03:02]} 11. e4 {[%emt 0:04:24]} O-O {[%emt 0:01:42]} 12. Be3 {[%emt 0:05:50]} Qc7 {[%emt 0:07:27]} 13. Rc1 {[%emt 0:04:21]} Nd8 {[%emt 0:00:31]} 14. Qc2 {[%emt 0:03:55]} Be6 {[%emt 0:08:36]} 15. Rfd1 {[%emt 0:03:30]} Rc8 {[%emt 0:02:44]} 16. Ng5 {[%emt 0:05:01]} Bxg5 {[%emt 0:03:48]} 17. Bxg5 {[%emt 0:00:22]} b6 {[%emt 0:07:31]} 18. b4 {[%emt 0:02:54]} Bxd5 {[%emt 0:02:36]} 19. exd5 {[%emt 0:03:25]} Re8 {[%emt 0:02:05]} 20. bxc5 {[%emt 0:01:01]} bxc5 {[%emt 0:02:32]} 21. Qa4 {[%emt 0:01:20]} Kf8 {[%emt 0:05:49]} 22. d6 {[%emt 0:01:01]} Qc6 {[%emt 0:01:11]} 23. Qxc6 {[%emt 0:00:46]} Rxc6 {[%emt 0:00:49]} 24. d7 {[%emt 0:00:09]} Re7 {[%emt 0:01:31]} 25. Bxe7+ {[%emt 0:00:46]} Kxe7 {[%emt 0:00:10]} 26. Rd2 {[%emt 0:01:20]} Re6 {[%emt 0:00:57]} 27. g3 {[%emt 0:01:03]} Rc6 {[%emt 0:03:35]} 28. f4 {[%emt 0:04:42]} Rd6 {[%emt 0:05:08]} 29. Rcd1 {[%emt 0:03:08]} Rxd2 {[%emt 0:01:08]} 30. Rxd2 {[%emt 0:00:08]} Nb7 {[%emt 0:01:18]} 31. Kf2 {[%emt 0:01:24]} Nd6 {[%emt 0:01:23]} 32. Rxd6 {[%emt 0:00:32]} Kd8 {[%emt 0:02:11]} 33. Ke3 {[%emt 0:00:23]} g6 {[%emt 0:01:09]} 34. Kd3 {[%emt 0:00:17]} h5 {[%emt 0:00:16]} 35. Kc4 {[%emt 0:00:05]} h4 {[%emt 0:01:24]} 36. Kxc5 {[%emt 0:00:15]} hxg3 {[%emt 0:00:44]} 37. hxg3 {[%emt 0:00:08]} a5 {[%emt 0:00:27]} 38. Kc6 {[%emt 0:00:18]} a4 {[%emt 0:01:11]} 39. Rd1 {[%emt 0:00:07]} a3 {[%emt 0:00:36]} 40. Re1 {[%emt 0:00:05]} 1-0